Cogmind - Beta 13 @@@ ROGUE MODE // 2024.07.04 @ 17:49:43 Player: Minty Result: Self-destructed Performance ------------- Evolutions (1) 500 Regions Visited (4) 800 Robots Destroyed (34) 170 Value Destroyed (662) 662 Prototype IDs (3) 60 Alien Tech Used (0) 0 Bonus (0) 0 TOTAL SCORE: 2192 Bonus ------- None Cogmind --------- Core Integrity 243/400 Matter 222/300 Energy 265/265 System Corruption 0% Temperature Cool (0) Movement Walking (120) Location -9/Mines Parts ------- > --- POWER (1) -------- Improved Ion Engine > --- PROPULSION (2) --- Carbon-fiber Leg Improved Carbon-fiber Leg > --- UTILITY (4) ------ Small Storage Unit Targeting Computer > --- WEAPON (2) ------- Heavy Assault Rifle > --- INVENTORY (8) ---- Wheel Wheel Disposable Heat Sink High-capacity Battery (250) ECM Suite Gauss Cannon Gauss Cannon Rocket Launcher Peak State ------------ > --- POWER ------------ Improved Ion Engine > --- PROPULSION ------- Improved Aluminum Leg Improved Carbon-fiber Leg > --- UTILITY ---------- Small Storage Unit Targeting Computer Kinecellerator Improved Shield Generator > --- WEAPON ----------- Heavy Assault Rifle Heavy Assault Rifle > --- INVENTORY -------- Wheel Wheel Disposable Heat Sink High-capacity Battery ECM Suite Gauss Cannon Gauss Cannon Rocket Launcher [Rating: 23] Favorites ----------- Power Light Ion Engine Engine Light Ion Engine Propulsion Aluminum Leg Leg Aluminum Leg Utility Small Storage Unit Device Improved Terrain Scanner Storage Small Storage Unit Processor Targeting Computer Weapon Assault Rifle Ballistic Gun Assault Rifle Launcher Rocket Launcher Special Weapon Mining Laser Build | -11 -10 -10 -9 -9 ------- Run | Yrd Mat Min Mat Min Slots Evolved 2 | . . . 2 . Power . | . . . . . Propulsion . | . . . . . Utility 2 | . . . 2 . Weapon . | . . . . . Parts Attached 24 | . 2 3 11 8 Power 3 | . 1 1 1 . Engine 3 | . 1 1 1 . Core . | . . . . . Reactor . | . . . . . Propulsion 3 | . . . 1 2 Treads . | . . . . . Leg 3 | . . . 1 2 Wheel . | . . . . . Hover . | . . . . . Flight . | . . . . . Utility 8 | . 1 1 2 4 Device 5 | . 1 1 1 2 Storage . | . . . . . Processor 3 | . . . 1 2 Hackware . | . . . . . Protection . | . . . . . Artifact . | . . . . . Weapon 10 | . . 1 7 2 Energy Gun . | . . . . . Energy Cannon . | . . . . . Ballistic Gun 7 | . . . 5 2 Ballistic Cannon . | . . . . . Launcher 2 | . . . 2 . Special Weapon 1 | . . 1 . . Impact Weapon . | . . . . . Slashing Weapon . | . . . . . Piercing Weapon . | . . . . . Special Melee Weapon . | . . . . . Unidentified Prototypes . | . . . . . Parts Lost 6 | . 3 . . 3 Power 2 | . 2 . . . Propulsion . | . . . . . Utility 3 | . 1 . . 2 Weapon 1 | . . . . 1 Highest Loss Streak 3 | . 2 . . 3 To Critical Strikes . | . . . . . Average Slot Usage (%) 92 | . 88 93 89 94 Engine 10 | . 8 10 11 11 Leg 26 | . 28 28 22 22 Device 11 | . 8 10 15 13 Storage 13 | . 14 14 11 11 Processor 3 | . . . 6 15 Ballistic Gun 20 | . 28 17 19 20 Special Weapon 5 | . . 10 . . Naked Turns . | . . . . . Heaviest Build 26 | 11 14 12 19 26 Greatest Support 33 | 20 20 20 23 33 Greatest Overweight (x) . | . . . . . Average Overweight (x) . | . . . . . Largest Inventory Capacity 8 | . 8 8 8 8 Average Capacity 8 | . 8 8 8 8 Most Carried 8 | . 7 8 8 8 Average Carried 7 | . 6 7 7 7 Final Capacity 8 | 8 8 8 8 8 Final Carried 8 | 6 7 7 8 8 Class Distribution -------------------- 87% | Mutant 12% | Scavenger-Mutant Dominant Class ---------------- Mutant | -10/Materials Mutant | -10/Mines Scavenger-Mutant | -9/Materials Mutant | -9/Mines Resources | -11 -10 -10 -9 -9 ----------- Run | Yrd Mat Min Mat Min Matter Collected 793 | 200 85 38 253 217 Remotely . | . . . . . Salvage Created 883 | . 285 56 347 195 Parts 76 | . 22 6 31 17 Haulers Intercepted . | . . . . . Recyclers Shooed . | . . . . . Parts Field Recycled . | . . . . . Retrieved Matter . | . . . . . Parts Self-Destructed . | . . . . . Prevented . | . . . . . Kills | -11 -10 -10 -9 -9 ------- Run | Yrd Mat Min Mat Min Combat Hostiles Destroyed 23 | . 6 2 10 5 Guns 19 | . 6 . 8 5 Cannons 2 | . . 2 . . AOE 2 | . . . 2 . Classes Destroyed 9 | . 3 1 5 . Worker 2 | . . . 1 1 Builder 2 | . 1 . 1 . Tunneler 3 | . . 1 1 1 Recycler 1 | . . . 1 . Operator 1 | . 1 . . . Watcher 2 | . . . 2 . Swarmer 11 | . . . 8 3 Grunt 8 | . 6 2 . . Sentry 4 | . . . 2 2 Best Kill Streak 11 | . 4 2 11 5 Combat Bots Only 8 | . 3 2 8 2 Max Kills in Single Turn 2 | . 1 1 2 1 Gunslinging . | . . . . . Exploded 1 | . . . 1 . Melee . | . . . . . Uniques/NPCs Destroyed . | . . . . . Combat | -11 -10 -10 -9 -9 -------- Run | Yrd Mat Min Mat Min Hostile Shots Fired 148 | . 36 . 66 46 Missed 40 | . 8 . 21 11 Damage Taken 1000 | . 349 . 389 262 Core 227 | . 70 . 112 45 Absorbed by Shields 54 | . . . . 54 Core Remaining (%) 86 | 100 . 72 . . Volleys Fired 106 | . 32 23 31 20 Largest 2 | . 2 2 2 2 Hottest 120 | . 40 120 53 46 Shots Fired 195 | . 64 33 61 37 Gun 168 | . 64 13 54 37 Cannon . | . . . . . Launcher 7 | . . . 7 . Special 20 | . . 20 . . Kinetic 168 | . 64 13 54 37 Thermal 20 | . . 20 . . Explosive 7 | . . . 7 . Electromagnetic . | . . . . . Robot Hit Streak 7 | . 7 3 7 5 Robot Miss Streak 5 | . 5 1 4 3 Penetration Max . | . . . . . Secondary Targets 2 | . 1 . 1 . Max Gunslinging Chain 1 | . 1 . 1 . Shots Hit Robots 94 | . 36 6 32 20 Core Hits 51 | . 18 4 20 9 Critical Kills 2 | . 1 . . 1 Critical Parts Destroyed . | . . . . . Critical Strikes 2 | . 1 . . 1 Destroy 2 | . 1 . . 1 Melee Attacks . | . . . . . Impact . | . . . . . Slashing . | . . . . . Piercing . | . . . . . Sneak Attacks . | . . . . . Combat Hostiles . | . . . . . Follow-up Attacks . | . . . . . Damage Inflicted 1518 | . 395 93 661 369 Guns 1179 | . 375 39 401 364 Cannons . | . . . . . Explosions 256 | . . . 256 . Melee . | . . . . . Ramming 35 | . 20 6 4 5 Kinetic 1179 | . 375 39 401 364 Thermal 48 | . . 48 . . Explosive 256 | . . . 256 . Electromagnetic . | . . . . . Impact . | . . . . . Slashing . | . . . . . Piercing . | . . . . . Highest Corruption 3 | . 3 3 . . Average Corruption 2 | . 2 3 . . Corruption Purged . | . . . . . Corruption Blocked . | . . . . . Effects 22 | . 4 18 . . Message Errors 4 | . 1 3 . . Matter Fused 2 | . 1 1 . . Heat Flow Errors 2 | . . 2 . . Energy Discharges 2 | . . 2 . . Data Loss (minor) 6 | . 1 5 . . Data Loss (major) 4 | . 1 3 . . Misfires 2 | . . 2 . . Overload Shots . | . . . . . Overflow Damage . | . . . . . Projectiles . | . . . . . Explosions . | . . . . . Melee . | . . . . . Knockbacks . | . . . . . Impact . | . . . . . Kinetic . | . . . . . Secondary . | . . . . . Self-Inflicted Damage . | . . . . . Shots . | . . . . . Rammed . | . . . . . Targets Rammed 14 | . 8 3 1 2 Kicked 14 | . 8 3 1 2 Crushed . | . . . . . Highest Temperature 242 | . 18 242 15 1 Average Temperature 79 | . 8 97 7 1 Received Heat Transfer 213 | . 195 . 9 9 Effects 3 | . . 3 . . Interference 3 | . . 3 . . Siege Activations . | . . . . . Robots Corrupted . | . . . . . Combat Hostiles . | . . . . . Parts Fried . | . . . . . Impact Corruptions . | . . . . . Robots Melted . | . . . . . Combat Hostiles . | . . . . . Parts Melted . | . . . . . Heat Transferred 100 | . . 100 . . Parts Sabotaged . | . . . . . Parts Stolen . | . . . . . Parts Stripped . | . . . . . Power Chain Reactions . | . . . . . Alert | -11 -10 -10 -9 -9 ------- Run | Yrd Mat Min Mat Min Peak Influence 375 | . 209 86 375 255 Initial 145 | . . 81 . 145 Average 103 | . 98 47 165 210 Maximum Alert Level 1 | . 1 . 1 1 Low Security (%) 74 | . 83 100 71 4 Level 1 25 | . 16 . 28 95 Level 2 . | . . . . . Level 3 . | . . . . . Level 4 . | . . . . . Level 5 . | . . . . . High Security . | . . . . . Max Security . | . . . . . Squads Dispatched 4 | . 3 1 . . Investigation 2 | . 1 1 . . Extermination . | . . . . . Reinforcement 2 | . 2 . . . Assault . | . . . . . Garrison . | . . . . . Intercept . | . . . . . Searches Triggered . | . . . . . Construction Impeded . | . . . . . Haulers Reinforced . | . . . . . Active Scanning Responses . | . . . . . Cargo Convoy Interrupts . | . . . . . Stealth | -11 -10 -10 -9 -9 --------- Run | Yrd Mat Min Mat Min Distress Signals 3 | . 1 . 2 . Communications Jammed . | . . . . . Distress Signals . | . . . . . Times Spotted 42 | . 18 2 17 5 Peak Tracking Total 5 | . 5 2 5 3 Tactical Retreats 3 | . 2 . 1 . Traps | -11 -10 -10 -9 -9 ------- Run | Yrd Mat Min Mat Min Traps Triggered 3 | . 3 . . . Indirectly . | . . . . . Trap Hack Attempts . | . . . . . Triggered . | . . . . . Disarmed . | . . . . . Reprogrammed . | . . . . . Reused . | . . . . . Traps Extracted . | . . . . . Installed . | . . . . . Triggered . | . . . . . Machines | -11 -10 -10 -9 -9 ---------- Run | Yrd Mat Min Mat Min Machines Disabled . | . . . . . Max in Single Turn . | . . . . . Machines Repaired . | . . . . . Machines Dismantled . | . . . . . Machines Sabotaged . | . . . . . Overloaded Fab Kills . | . . . . . Hacking | -11 -10 -10 -9 -9 --------- Run | Yrd Mat Min Mat Min Machines Accessed 6 | . 3 2 . 1 Terminals 5 | . 3 2 . . Fabricators . | . . . . . Repair Stations . | . . . . . Recycling Units . | . . . . . Scanalyzers . | . . . . . Garrison Access . | . . . . . Total Hacks 18 | . 7 10 . 1 Successful 8 | . 3 4 . 1 Failed 9 | . 4 5 . . Catastrophic 4 | . 2 2 . . Database Lockouts 1 | . . 1 . . Manual 12 | . 2 10 . . Terminals 17 | . 7 10 . . Fabricators . | . . . . . Repair Stations . | . . . . . Recycling Units . | . . . . . Scanalyzers . | . . . . . Garrison Access . | . . . . . Terminal Hacks 8 | . 3 4 . 1 Prototype ID Bank 2 | . 1 1 . . Open Door 1 | . . . . 1 Alert Level 2 | . 1 1 . . Unreport Threat 1 | . . 1 . . Locate Traps 1 | . 1 . . . Patrol Status 1 | . . 1 . . Fabricator Hacks . | . . . . . Repair Station Hacks . | . . . . . Recycling Unit Hacks . | . . . . . Scanalyzer . | . . . . . Garrison Access Hacks . | . . . . . Unauthorized Hacks . | . . . . . Terminals . | . . . . . Fabricators . | . . . . . Repair Stations . | . . . . . Recycling Units . | . . . . . Scanalyzers . | . . . . . Garrison Access . | . . . . . Data Cores Recovered . | . . . . . Used . | . . . . . Hacking Detections 5 | . 3 2 . . Full Trace Events 3 | . 1 2 . . Feedback Events . | . . . . . Feedback Blocked . | . . . . . Robot Schematics Acquired . | . . . . . Robots Built . | . . . . . Authchips . | . . . . . Time . | . . . . . Total Robot Build Rating . | . . . . . Part Schematics Acquired . | . . . . . Parts Built . | . . . . . Authchips . | . . . . . Time . | . . . . . Total Part Build Rating . | . . . . . Parts Repaired . | . . . . . Time . | . . . . . Parts Recycled . | . . . . . Recycled Matter . | . . . . . Retrieved Matter . | . . . . . Retrieved Components . | . . . . . Parts Scanalyzed . | . . . . . Part Schematics Acquired . | . . . . . Parts Damaged . | . . . . . Bothacking | -11 -10 -10 -9 -9 ------------ Run | Yrd Mat Min Mat Min Used RIF Installer . | . . . . . Robots Hacked . | . . . . . Non-combat . | . . . . . Combat . | . . . . . Robot Hacks Applied . | . . . . . Relay Couplers Released . | . . . . . Fabnet Peak Effective % . | . . . . . Robots Rewired . | . . . . . Allies Hacked . | . . . . . Hacks Repelled . | . . . . . Allies | -11 -10 -10 -9 -9 -------- Run | Yrd Mat Min Mat Min Total Allies . | . . . . . Largest Group . | . . . . . Highest-Rated Group . | . . . . . Highest-Rated Ally . | . . . . . Total Orders . | . . . . . Ally Attacks . | . . . . . Total Damage . | . . . . . Kills . | . . . . . Allies Corrupted . | . . . . . Allies Melted . | . . . . . Intel | -11 -10 -10 -9 -9 ------- Run | Yrd Mat Min Mat Min Robot Analysis Total . | . . . . . Derelict Logs Recovered 1 | . . 1 . . Drone Launches . | . . . . . Drone Recoveries . | . . . . . Exploration | -11 -10 -10 -9 -9 ------------- Run | Yrd Mat Min Mat Min Turns Passed 1607 | . 297 796 203 311 Spaces Moved 836 | 1 162 400 80 193 Core . | . . . . . Treads . | . . . . . Legs 836 | 1 162 400 80 193 Wheels . | . . . . . Hover . | . . . . . Flight . | . . . . . Fastest Speed 120 | 120 120 120 120 120 Average Speed 120 | 120 120 120 120 120 Slowest Speed 120 | 120 120 120 120 120 Overloaded Moves . | . . . . . Propulsion Burnouts . | . . . . . Robots Hopped . | . . . . . Cave-ins Triggered . | . . . . . Exploration Rate (%) 36 | 2 39 88 14 39 Regions Visited 4 Branch Regions 2 Pre-discovered Areas . | . . . . . Known Exits Taken 1 | . . . 1 . Unknown Exits Taken 3 | 1 1 1 . . Scrap Searched 1 | . . 1 . . Spaces Dug . | . . . . . Terrain Destroyed 42 | . . 1 41 . Melee . | . . . . . Projectile 1 | . . 1 . . AOE 41 | . . . 41 . Terrain Rammed . | . . . . . Walls Destroyed . | . . . . . Machines Disabled . | . . . . . Actions | -11 -10 -10 -9 -9 --------- Run | Yrd Mat Min Mat Min Total 1212 | . 204 645 124 239 Wait 213 | . . 212 . 1 Move 832 | . 161 399 79 193 Hop . | . . . . . Pick Up 6 | . 1 2 . 3 Fast Attach 10 | . 2 2 2 4 Attach 1 | . . 1 . . Detach 4 | . . 1 . 3 Swap 13 | . . . 9 4 Drop 13 | . . 2 2 9 Fire 106 | . 32 23 31 20 Melee . | . . . . . Ram . | . . . . . Kick 14 | . 8 3 1 2 Crush . | . . . . . Escape Stasis . | . . . . . Rewire . | . . . . . Trap . | . . . . . Miscellaneous . | . . . . . Route ------- -11/Scrapyard -10/Materials -10/Mines -9/Materials (discovered 2 exits: Mat / *Min) -9/Mines History --------- Turn | Location | Event 1 | -11/Scrapyard | Discovered new exit (range 0) 1 | -11/Scrapyard | Entered Materials 249 | -10/Materials | Discovered new exit (range 16) 298 | -10/Materials | Entered Mines 305 | -10/Mines | Received a Rocket Launcher from a helpful Derelict 317 | -10/Mines | Build established: Mutant 421 | -10/Mines | Learned 8 Materials zone layouts 976 | -10/Mines | Central database locked down 1077 | -10/Mines | Discovered new exit (range 10) 1094 | -10/Mines | Entered Materials 1094 | -9/Materials | Evolved 2 slots: Utility x2 1095 | -9/Materials | Identified exit to Materials 1095 | -9/Materials | Identified exit to Mines 1297 | -9/Materials | Entered Mines 1302 | -9/Mines | Destroyed 8 combat bots 1445 | -9/Mines | Met a Derelict who couldn't figure out how to use a Trap Extractor 1593 | -9/Mines | Lost 3 parts (2u1w) 1599 | -9/Mines | Assembled infested the area 1608 | -9/Mines | Self-destructed Last Messages --------------- 01535_ K-01 Serf collects debris. 01537_ S-10 Pest destroyed. 01539_ K-01 Serf collects debris. 01540_ Imp. Shield Generator destroyed. 01555_ K-01 Serf destroyed. 01558_ Destroyed Flight Unit. 01558_ Kinecellerator destroyed. 01561_ Destroyed Lgt. Ion Engine. 01562_ Hvy. Assault Rifle destroyed. 01566_ Destroyed Flight Unit. 01568_ S-10 Pest destroyed. 01575_ Kicked R-06 Scavenger. 01576_ Acquired 20 matter. 01582_ Dropped Imp. Aluminum Leg. 01583_ Acquired 17 matter. 01584_ K-01 Serf collects debris. 01584_ Kicked R-06 Scavenger. 01586_ Acquired 60 matter. 01599_ ALERT: Infestation in the mines, dispatching Demolisher response squad. Map ----- +----------------------------------------------------+ | ????????????????????????????????????????? | | ????????????????????????????????????????? | | ????????????????????????????????????????? | | ????????????????????????????????????????? | | ????????????????????????????????????????? | | ????????????????????????????????????????? | | ????????????????????????????????????????? | | ????????????????????????????????????????? | | ????????????????????????????????????????? | | ????????????????????????????????????????? | | ????????????????????????????????????????? | | ????????????????????????????????????????? | | ????????????????????????????????????????? | | ????????????????????????????????????????? | | ????????????????????????????????????????? | | ????????????????????????????????????????? | | ????????????????????????????????????????? | | ????????????????????????????????????????? | | ????????????????????????????????????????? | | ???????????????????????#####????????????? | | ?????????????#????????## ##???????????? | | ?????????????#$??????## ##??????????? | | ?????????????# ??????# ###????????? | | ?????????????# a????## ##???????? | | ?????????????# ##### #???????? | | ?????????????# @ #???????? | | ?????????????# ##???????? | | ?????????????######## ###????????? | | ????????????????????## ##??????????? | | ?????????????????????## ##??????????? | | ??????????????????????# ###????????? | | ??????????????????????# ##???????? | | ??????????????????????# #???????? | | ??????????????????????## ##????### | | ???????????????????????### *##?## | | ?????????????????????????# ## ==### | | ?????????????????????????# ##### | | ?????????????????????????# #???## = | | ?????????????????????????# #????#* | | ????????????????????????## ###### = | | ????????????????????????# %|%! ### | | ????????????????????????# ###### #?? | | ????????????????????????? ?????# ##? | | ????????????????????????? ?????## ## | | ????????????????????????? ??????### | | ????????????????????????? ????????## | | ????????????????????????? ??????????## | | ?????????????????????????????????????# | | ?????????????????????????????????????## | | ??????????????????????????????????????## | +----------------------------------------------------+ Best States ------------- Heat Dissipation 28 Coolant Potential 50 Energy Generation 12 Energy Capacity 265 Matter Stores 300 Matter Capacity 300 Sight Range 16 Terrain Scan Range 16 Terrain Scan Density 85 Evasion (%) 55 Targeting Accuracy 5 Kinecelleration 30 Salvage Targeting 1 Item Schematics ----------------- None Robot Schematics ------------------ None Fabricated ------------ Nothing Alien Tech Used ----------------- None Achievements -------------- None Challenges ------------ None Game ------ Seed AssemblyVariableBank Manual? 0 Play Time 00:12:34 Cumulative 782.5 hours Start 2024.07.04 @ 15:20:28 End 2024.07.04 @ 17:49:43 Sessions 3 Manual Loads 0 Difficulty Rogue Special Mode None Game No. 897 Rogue 619 Adventurer 124 Explorer 154 Win Type - Total 31 Types 25/0/4/1/0/0/0/1/0 Lore% 84 Gallery% 92 Achievement% 77 Wizard Run 0 Options --------- Layout 0 ASCII 0 Keyboard 1 Movement Numpad Keybinds 0 Fullscreen 2 Font 18/Terminus Map View 76x50 Zoom Use 1% Tactical HUD 1 Map Filters NONE Filters NONE Steam 1 RUN: b0176da1-79c2-4ec6-85b1-e400d177d860